bitfinex-derivatives/quotes_SOLF0:USTF0_20250929
["timestamp","ask_amount","ask_price","bid_price","bid_amount"]
[1759161939772,8.04,210.86,210.77,11.7872]
[1759161940171,8.04,210.86,210.77,7.52]
[1759161940571,4.2658,210.85,210.77,7.52]
[1759161941676,4.2658,210.85,210.77,11.7871]
[1759161945172,4.2658,210.85,210.78,4.2669]
[1759161945773,4.2658,210.85,210.79,7.52]
[1759161947675,4.2652,210.88,210.79,7.52]
[1759161948071,4.2652,210.88,210.79,3.46826646]
[1759161948272,4.2652,210.88,210.82,7.52]
[1759161949678,8.04,210.89,210.82,7.52]
[1759161950176,8.04,210.89,210.82,11.7868]
[1759161950381,8.04,210.89,210.82,7.52]
[1759161950977,8.04,210.89,210.84,7.52]
[1759161951179,8.04,210.92,210.85,4.2655]
[1759161951480,8.04,210.92,210.84,7.52]
[1759161951674,8.04,210.92,210.86,9.73588014]
[1759161952678,117.02,210.94,210.87,7.52]
[1759161952880,125.06,210.94,210.87,7.52]
[1759161953282,12.3041,210.93,210.87,7.52]
[1759161955377,10.25588014,210.93,210.83,8.03]
[1759161955574,7.99,210.89,210.8,10.24588014]
[1759161955772,7.99,210.89,210.8,8.03]
[1759161955982,7.99,210.89,210.81,2.21588014]
[1759161956684,12.255,210.89,210.81,6.48218014]
[1759161958183,4.2652,210.87,210.8,10.24588014]
[1759161958382,7.99,210.89,210.8,10.24588014]
[1759161959583,12.2549,210.89,210.8,14.51238014]
[1759161961086,12.2549,210.89,210.81,4.2663]
[1759161961582,12.2549,210.89,210.82,2.21588014]
[1759161961978,7.99,210.89,210.82,6.48198014]
[1759161962174,7.99,210.89,210.82,14.51198014]
[1759161962376,7.99,210.92,210.84,2.21588014]
[1759161963585,12.2548,210.9,210.84,2.21588014]
[1759161964292,7.99,210.9,210.84,6.48158014]
[1759161964486,7.99,210.9,210.86,2.21588014]
[1759161964691,7.99,210.95,210.87,8.03]
[1759161964885,4.2641,210.93,210.87,8.03]
[1759161965079,4.2641,210.93,210.86,2.21588014]
[1759161965080,7.99,210.92,210.88,10.24588014]
[1759161965296,7.99,210.92,210.86,2.21588014]
[1759161965992,7.99,210.94,210.9,2.21588014]
[1759161966195,7.99,210.94,210.9,10.24588014]
[1759161966794,4.2635,210.96,210.9,10.24588014]
[1759161967592,7.99,210.95,210.9,10.24588014]
[1759161967793,7.99,210.94,210.9,2.21588014]
[1759161967994,4.2637,210.95,210.9,2.21588014]
[1759161968187,7.99,210.94,210.9,2.21588014]
[1759161969099,12.2533,210.97,210.91,8.03]
[1759161969402,7.99,210.97,210.94,2.21588014]
[1759161969898,116.96,210.98,210.94,2.21588014]
[1759161970198,7.99,210.97,210.94,2.21588014]
[1759161971091,7.99,210.97,210.91,8.03]
[1759161971294,7.99,210.97,210.93,2.21588014]
[1759161971902,7.99,210.97,210.88,26.62771424]
[1759161972092,7.99,210.97,210.9,2.21588014]
[1759161972298,12.2533,210.97,210.9,2.21588014]
[1759161972597,7.99,210.97,210.9,2.21588014]
[1759161973694,7.84,210.97,210.9,2.21588014]
[1759161974099,7.84,210.97,210.92,2.21588014]
[1759161974303,7.84,210.96,210.92,2.21588014]
[1759161974499,7.84,210.96,210.92,10.12588014]
[1759161974699,4.2633,210.97,210.92,10.12588014]
[1759161975006,4.2633,210.97,210.92,7.91]
[1759161975205,7.84,210.96,210.92,7.91]
[1759161975400,7.84,210.97,210.89,7.91]
[1759161975601,7.84,210.97,210.9,2.21588014]
[1759161976205,7.84,210.97,210.89,7.91]
[1759161976206,7.84,210.97,210.92,2.21588014]
[1759161976406,124.8,210.98,210.92,2.21588014]
[1759161976606,7.84,210.96,210.92,10.12588014]
[1759161977702,7.84,210.95,210.92,2.21588014]
[1759161978101,4.2635,210.96,210.92,2.21588014]
[1759161978606,7.84,210.95,210.92,2.21588014]
[1759161978807,4.2635,210.96,210.92,2.21588014]
[1759161979004,7.84,210.95,210.92,2.21588014]
[1759161979702,4.2637,210.95,210.92,2.21588014]
[1759161979901,7.84,210.94,210.92,2.21588014]
[1759161980198,4.2637,210.95,210.93,7.91]
[1759161980399,12.1033,210.97,210.92,2.21588014]
[1759161980605,7.84,210.97,210.94,10.12588014]
[1759161980911,0.76539402,211.0,210.94,2.21588014]
[1759161981212,124.74,211.02,210.94,10.12588014]
[1759161981410,7.84,210.98,210.88,14.22691246]
[1759161981615,7.84,211.01,210.93,2.21588014]
[1759161982514,7.84,211.01,210.89,7.91]
[1759161982708,7.84,210.97,210.92,2.21588014]
[1759161983023,7.84,210.99,210.89,7.91]
[1759161983315,7.84,210.99,210.9,2.21588014]
[1759161984618,4.2635,210.96,210.9,2.21588014]
[1759161985021,11.9635,210.96,210.9,2.21588014]
[1759161986218,7.7,210.95,210.92,2.21588014]
[1759161986621,7.7,210.95,210.91,2.21588014]
[1759161986622,4.2637,210.95,210.91,2.21588014]
[1759161986821,7.7,210.94,210.91,2.21588014]
[1759161987023,4.2637,210.95,210.91,2.21588014]
[1759161987218,4.2637,210.95,210.89,7.91]
[1759161987413,4.2637,210.95,210.9,2.21588014]
[1759161987613,7.7,210.94,210.9,2.21588014]
[1759161988013,7.7,210.94,210.9,9.83588014]
[1759161988412,7.7,210.94,210.88,14.18988135]
[1759161988620,7.7,210.93,210.9,2.21588014]
[1759161989019,4.2639,210.94,210.9,2.21588014]
[1759161989217,7.7,210.93,210.9,2.21588014]
[1759161989723,4.2635,210.96,210.9,2.21588014]
[1759161989923,4.2635,210.96,210.92,2.21588014]
[1759161990124,7.7,210.95,210.92,2.21588014]
[1759161990520,4.2635,210.96,210.92,9.83588014]
[1759161990930,11.9631,210.98,210.94,2.21588014]
[1759161991318,4.2633,210.97,210.94,2.21588014]
[1759161991524,7.7,210.96,210.94,2.21588014]
[1759161992216,4.2633,210.97,210.94,2.21588014]
[1759161992415,11.9633,210.97,210.94,2.21588014]
[1759161992827,4.2629,210.99,210.96,2.21588014]
[1759161993229,7.7,210.98,210.96,2.21588014]
[1759161993832,7.7,211.0,210.96,9.83588014]
[1759161994026,7.7,211.0,210.98,2.21588014]
[1759161994329,116.88,211.01,210.96,2.21588014]
[1759161994528,116.88,211.01,210.88,21.66488215]
[1759161994829,7.7,211.0,210.92,2.21588014]
[1759161995025,7.7,210.95,210.86,7.62]
[1759161995226,7.7,210.95,210.89,2.21588014]
[1759161995532,7.7,210.95,210.81,7.62]
[1759161995533,4.2651,210.88,210.81,7.62]
[1759161995725,4.2651,210.88,210.81,21.64888073]
[1759161995928,4.2651,210.88,210.82,2.21588014]
[1759161996128,97.04,210.89,210.81,2.21588014]
[1759161996330,97.04,210.89,210.79,2.21588014]
[1759161996331,7.7,210.87,210.79,2.21588014]
[1759161996524,4.266,210.84,210.78,0.2299]
[1759161996725,11.966,210.84,210.78,2.21588014]
[1759161997324,4.2662,210.82,210.78,2.21588014]
[1759161997530,7.7,210.81,210.74,14.14592274]
[1759161997729,4.2662,210.82,210.77,2.21588014]
[1759161997934,7.7,210.81,210.77,2.21588014]
[1759161998529,7.7,210.81,210.75,2.21588014]
[1759161999724,7.7,210.81,210.73,9.83588014]
[1759162000128,7.45016,210.81,210.75,2.21588014]
[1759162001034,11.71656,210.81,210.73,9.83588014]
[1759162002333,11.71656,210.81,210.73,7.62]
[1759162002935,11.71656,210.81,210.75,2.21588014]
[1759162003330,4.266,210.84,210.79,2.21588014]
[1759162003532,7.7,210.83,210.77,2.21588014]
[1759162004534,11.9662,210.83,210.77,2.21588014]
[1759162006028,4.2664,210.82,210.75,2.21588014]
[1759162006239,7.7,210.81,210.75,2.21588014]
[1759162006537,2.21588014,210.81,210.7,4.2685]
[1759162006742,7.7,210.8,210.72,2.21588014]
[1759162007640,4.267,210.79,210.72,9.83588014]
[1759162007938,7.7,210.8,210.74,2.21588014]
[1759162008133,4.2661,210.83,210.76,2.21588014]
[1759162008638,14.22975258,210.91,210.69,66.4036]
[1759162008639,4.2656,210.86,210.8,2.21588014]
[1759162008837,7.7,210.88,210.82,2.21588014]
[1759162010034,9.91588014,210.88,210.78,2.21588014]
[1759162010236,7.7,210.85,210.74,11.08408279]
[1759162010734,4.2662,210.83,210.74,11.08408279]
[1759162010933,7.7,210.82,210.74,7.62]
[1759162011541,7.7,210.82,210.74,11.8877]
[1759162011937,7.7,210.82,210.74,7.62]
[1759162013643,7.7,210.82,210.69,7.62]
[1759162013843,74.0647,210.82,210.69,7.62]
[1759162014138,7.7,210.8,210.69,7.62]
[1759162014334,4.2676,210.75,210.69,7.62]
[1759162014741,7.56,210.76,210.69,7.62]
[1759162016647,11.8276,210.76,210.69,7.62]
[1759162016845,7.56,210.76,210.69,7.62]
[1759162017051,7.56,210.76,210.65,7.45]
[1759162017241,4.2682,210.73,210.65,7.45]
[1759162017645,4.2682,210.73,210.65,11.7195]
[1759162018349,11.8282,210.73,210.65,11.7195]
[1759162018848,7.56,210.73,210.66,4.2693]
[1759162019745,7.56,210.73,210.65,7.45]
[1759162020444,7.56,210.73,210.66,4.2693]
[1759162020841,7.56,210.78,210.68,4.2689]
[1759162021040,88.36,210.77,210.68,4.2689]
[1759162021645,4.2678,210.75,210.68,4.2689]
[1759162022148,7.56,210.71,210.63,7.45]
[1759162023656,4.2688,210.7,210.63,7.45]
[1759162023852,7.56,210.71,210.63,7.45]
[1759162024951,7.56,210.67,210.6,4.2706]
[1759162025349,7.56,210.67,210.59,25.29641356]
[1759162025350,7.56,210.67,210.59,7.45]
[1759162025554,7.56,210.67,210.55,7.45]
[1759162025848,7.56,210.64,210.55,7.45]
[1759162026648,7.56,210.64,210.55,14.36513131]
[1759162026847,7.56,210.64,210.56,7.45]
[1759162027053,4.2693,210.67,210.54,1.72299443]
[1759162027254,56.56,210.68,210.56,7.45]
[1759162027856,4.2696,210.66,210.58,4.271]
[1759162028055,116.98,210.7,210.58,3.46408279]
[1759162028260,116.98,210.7,210.59,7.45]
[1759162029269,4.2692,210.68,210.6,4.2706]
[1759162029466,7.56,210.68,210.59,7.45]
[1759162030659,11.8291,210.68,210.59,7.45]
[1759162031064,7.56,210.68,210.59,7.45]
[1759162031565,4.2694,210.67,210.59,7.45]
[1759162031770,7.56,210.68,210.59,7.45]
[1759162031967,66.4058,210.69,210.55,25.41598163]
[1759162032270,7.56,210.68,210.55,25.41598163]
[1759162032576,4.2698,210.65,210.57,4.2712]
[1759162032963,4.2698,210.65,210.58,7.45]
[1759162033478,11.8298,210.65,210.58,7.45]
[1759162035470,74.515,210.66,210.55,3.46408279]
[1759162035665,8.1,210.66,210.55,3.46408279]
[1759162036372,12.3704,210.62,210.55,3.46408279]
[1759162037278,12.3704,210.62,210.54,17.48887722]
[1759162038571,8.1,210.62,210.54,13.21707722]
[1759162038772,8.1,210.62,210.52,4.2723]
[1759162039076,121.36,210.62,210.5,8.03]
[1759162039276,3.21124105,210.61,210.5,8.03]
[1759162039575,4.2707,210.61,210.53,8.03]
[1759162039767,66.4057,210.69,210.55,3.46408279]
[1759162039768,8.1,210.66,210.55,3.46408279]
[1759162039968,3.21184292,210.65,210.58,4.2709]
[1759162040168,8.1,210.66,210.58,7.73498279]
[1759162040373,4.269,210.69,210.61,7.73448279]
[1759162040875,12.369,210.69,210.61,3.46408279]
[1759162041068,7.48348491,210.68,210.61,3.46408279]
[1759162041275,7.48348491,210.68,210.59,15.76488279]
[1759162041871,7.48348491,210.68,210.6,4.2705]
[1759162043675,4.2694,210.67,210.6,4.2705]
[1759162045871,7.53,210.67,210.59,11.49408279]
[1759162046267,4.2702,210.63,210.56,4.2714]
[1759162047375,4.2702,210.63,210.55,7.34]
[1759162047571,4.2702,210.63,210.55,10.80408279]
[1759162047972,4.2702,210.63,210.55,15.07558279]
[1759162049677,4.2697,210.65,210.59,7.34]
[1759162050078,7.53,210.69,210.59,7.34]
[1759162050982,4.2693,210.67,210.61,7.34]
[1759162052884,7.53,210.66,210.56,7.34]
[1759162053585,3.21809139,210.65,210.56,7.34]
[1759162053880,3.2183424,210.65,210.56,7.34]
[1759162054684,4.2704,210.62,210.56,7.34]
[1759162055282,4.2708,210.6,210.56,7.34]
[1759162055490,4.2708,210.6,210.52,21.87312789]
[1759162055789,4.2708,210.6,210.52,7.34]
[1759162056391,7.53,210.61,210.52,7.34]
[1759162056891,3.22331242,210.6,210.52,7.34]
[1759162057090,4.2714,210.57,210.49,7.34]
[1759162057291,4.2714,210.57,210.49,21.33041398]
[1759162057488,4.2714,210.57,210.49,7.34]
[1759162058587,4.2714,210.57,210.49,11.6128]
[1759162059792,4.2714,210.57,210.49,7.34]
[1759162061592,4.2717,210.56,210.49,7.34]
[1759162061896,7.53,210.58,210.49,7.34]
[1759162062594,4.2718,210.55,210.49,7.34]
[1759162065295,3.22639477,210.57,210.49,7.34]
[1759162065600,7.53,210.61,210.49,7.34]
[1759162065898,3.22703188,210.6,210.49,7.34]
[1759162066593,4.2709,210.59,210.51,4.2723]
[1759162066797,4.2709,210.59,210.52,7.34]
[1759162067394,4.2709,210.59,210.47,13.95044043]
[1759162067395,7.53,210.59,210.47,13.95044043]
[1759162067599,10.75703188,210.58,210.47,7.34]
[1759162067899,3.22703188,210.57,210.47,7.34]
[1759162068095,4.2721,210.54,210.47,11.6132]
[1759162068688,7.53,210.55,210.47,7.34]
[1759162070094,4.2722,210.53,210.47,7.34]
[1759162072999,11.8025,210.52,210.47,7.34]
[1759162073200,7.53,210.51,210.43,2.22371416]
[1759162073401,4.2729,210.5,210.43,2.22371416]
[1759162073601,7.53,210.51,210.44,7.34]
[1759162073804,7.53,210.51,210.45,4.2737]
[1759162074199,7.41,210.47,210.35,7.49]
[1759162074404,2.22371416,210.44,210.35,7.49]
[1759162074603,2.22371416,210.42,210.35,7.49]
[1759162074902,7.41,210.43,210.35,7.49]
[1759162075503,2.22371416,210.46,210.37,7.49]
[1759162075803,7.41,210.48,210.41,7.49]
[1759162076004,4.2728,210.5,210.42,2.22371416]
[1759162076304,7.49728294,210.5,210.42,2.22371416]
[1759162076605,4.2728,210.5,210.42,2.22371416]
[1759162077701,4.2731,210.49,210.42,2.22371416]
[1759162077995,5.44584712,210.5,210.41,7.49]
[1759162078305,7.41,210.49,210.4,2.22371416]
[1759162078706,4.2735,210.47,210.4,2.22371416]
[1759162078901,2.22371416,210.48,210.37,7.49]
[1759162078902,7.41,210.46,210.38,2.22371416]
[1759162079114,2.22371416,210.44,210.37,7.49]
[1759162079406,9.63371416,210.44,210.37,7.49]
[1759162080003,28.0,210.51,210.38,2.22371416]
[1759162080004,4.2736,210.46,210.38,2.22371416]
[1759162080205,7.41,210.48,210.42,2.22371416]
[1759162080411,2.22371416,210.5,210.42,2.22371416]
[1759162080709,11.6831,210.49,210.42,2.22371416]
[1759162080910,7.41,210.49,210.41,7.49]
[1759162081511,4.2733,210.48,210.41,7.49]
[1759162081709,7.41,210.49,210.41,7.49]
[1759162082103,4.2733,210.48,210.41,9.71371416]
[1759162082510,7.41,210.49,210.41,9.71371416]
[1759162082810,7.41,210.49,210.41,13.98811416]
[1759162083010,7.41,210.49,210.41,9.71371416]
[1759162083412,4.2733,210.48,210.41,9.71371416]
[1759162083712,7.41,210.45,210.37,7.49]
[1759162083909,7.41,210.45,210.39,2.22371416]
[1759162084106,2.22371416,210.48,210.39,2.22371416]
[1759162084907,4.2736,210.46,210.38,6.49871416]
[1759162085108,4.2736,210.46,210.38,2.22371416]
[1759162085412,11.6836,210.46,210.38,2.22371416]
[1759162086616,11.6836,210.46,210.39,4.2748]
[1759162086915,9.63371416,210.46,210.37,7.49]
[1759162087310,7.41,210.43,210.34,2.22371416]
[1759162087515,7.41,210.41,210.32,9.71371416]
[1759162087711,7.41,210.41,210.34,2.22371416]
[1759162087916,7.41,210.41,210.36,2.22371416]
[1759162088216,7.41,210.41,210.37,7.49]
[1759162089111,7.41,210.46,210.37,9.71371416]
[1759162089316,7.41,210.46,210.39,2.22371416]
[1759162090614,7.41,210.46,210.41,9.71371416]
[1759162092015,7.41,210.45,210.41,9.71371416]
[1759162092219,4.2737,210.46,210.41,2.22371416]
[1759162092414,7.41,210.45,210.41,2.22371416]
[1759162092619,4.2737,210.46,210.41,2.22371416]
[1759162092819,7.41,210.45,210.41,2.22371416]
[1759162093013,4.2737,210.46,210.41,2.22371416]
[1759162093210,7.41,210.45,210.41,2.22371416]
[1759162094723,4.2739,210.45,210.39,2.22371416]
[1759162095122,7.31,210.45,210.35,2.22371416]
[1759162095321,7.31,210.43,210.35,2.22371416]
[1759162095518,4.2746,210.41,210.35,2.22371416]
[1759162095724,2.22371416,210.42,210.33,2.22371416]
[1759162095925,2.22371416,210.4,210.25,7.41]
[1759162096125,4.2748,210.4,210.31,6.50021416]
[1759162096329,7.31,210.41,210.33,9.63371416]
[1759162096830,11.5847,210.41,210.34,4.2758]
[1759162097523,7.31,210.41,210.34,4.2758]
[1759162098231,7.31,210.41,210.33,7.41]
[1759162098529,7.31,210.41,210.33,9.63371416]
[1759162099327,4.2749,210.4,210.33,13.90971416]
[1759162100033,4.275,210.39,210.33,11.686]
[1759162101034,4.275,210.39,210.33,7.41]
[1759162101831,4.2753,210.38,210.31,6.50021416]
[1759162102133,2.22371416,210.4,210.32,4.2763]
[1759162102538,4.2753,210.38,210.32,4.2763]
[1759162102834,4.2753,210.38,210.31,2.22371416]
[1759162103636,9.53371416,210.38,210.29,9.63371416]
[1759162103831,7.31,210.37,210.29,7.41]
[1759162104032,9.53371416,210.37,210.27,9.63371416]
[1759162105136,9.53371416,210.37,210.29,2.22371416]
[1759162105327,4.2759,210.35,210.29,2.22371416]
[1759162105525,2.22371416,210.37,210.27,9.63371416]
[1759162105728,2.22371416,210.35,210.27,9.63371416]
[1759162106038,7.62,210.34,210.26,2.22371416]
[1759162106537,9.84371416,210.39,210.3,2.22371416]
[1759162106734,3.22240579,210.38,210.3,9.92371416]
[1759162107543,4.2755,210.37,210.3,9.92371416]
[1759162108238,2.22371416,210.37,210.3,7.7]
[1759162108741,3.22240579,210.38,210.3,9.92371416]
[1759162108944,3.22088788,210.38,210.3,9.92371416]
[1759162109240,4.2757,210.36,210.3,9.92371416]
[1759162110537,4.2759,210.35,210.3,9.92371416]
[1759162110739,7.62,210.34,210.28,2.22371416]
[1759162111039,6.49911416,210.37,210.29,7.7]
[1759162111236,7.49689699,210.37,210.3,2.22371416]
[1759162113144,4.2757,210.36,210.3,2.22371416]
[1759162113442,3.22149699,210.37,210.3,2.22371416]
[1759162114038,4.2759,210.35,210.3,9.92371416]
[1759162114233,11.8959,210.35,210.3,9.92371416]
[1759162114437,7.62,210.34,210.3,9.92371416]
[1759162114838,9.84371416,210.37,210.27,2.22371416]
[1759162115040,3.2229997,210.36,210.27,2.22371416]
[1759162115452,9.84371416,210.35,210.25,2.22371416]
[1759162115637,7.62,210.33,210.25,2.22371416]
[1759162116144,3.22396358,210.32,210.25,2.22371416]
[1759162116442,7.62,210.33,210.25,2.22371416]
[1759162116443,11.8963,210.33,210.25,2.22371416]
[1759162116641,11.8963,210.33,210.25,9.92371416]
[1759162117946,11.8963,210.33,210.27,2.22371416]
[1759162119139,7.62,210.33,210.27,2.22371416]
[1759162119340,4.2758,210.35,210.29,2.22371416]
[1759162119851,4.2758,210.35,210.28,7.7]
[1759162120042,4.2761,210.34,210.28,7.7]
[1759162120347,2.22371416,210.34,210.28,7.7]
[1759162121347,4.2758,210.35,210.28,7.7]
[1759162122343,11.8954,210.37,210.34,2.22371416]
[1759162123644,7.62,210.43,210.36,2.22371416]
[1759162123838,3.22405904,210.42,210.39,2.22371416]
[1759162124046,1.03441519,210.44,210.41,2.22371416]
[1759162124349,1.03441519,210.44,210.41,9.92371416]
[1759162124543,326.94,210.48,210.43,2.22371416]
[1759162124743,319.32,210.48,210.45,9.92371416]
[1759162124952,117.1,210.51,210.45,9.92371416]
[1759162125145,7.62,210.5,210.45,9.92371416]
[1759162125450,7.62,210.5,210.46,7.7]
[1759162125647,117.1,210.51,210.46,7.7]
[1759162125847,124.72,210.51,210.46,7.7]
[1759162126747,124.72,210.51,210.36,66.5089]
[1759162126748,74.0921,210.48,210.36,7.7]
[1759162126946,2.22371416,210.44,210.36,7.7]
[1759162127146,4.2746,210.41,210.36,7.7]
[1759162127449,11.8946,210.41,210.36,7.7]
[1759162127649,4.2749,210.4,210.32,7.7]
[1759162129147,2.22371416,210.41,210.32,7.7]
[1759162129148,4.2751,210.39,210.32,7.7]
[1759162130355,4.2753,210.38,210.32,7.7]
[1759162132659,4.2756,210.36,210.28,7.7]
[1759162132865,7.62,210.38,210.28,7.7]
[1759162133350,120.08,210.38,210.28,7.7]
[1759162133751,4.2759,210.35,210.28,7.7]
[1759162133948,66.4913,210.42,210.28,7.7]
[1759162134163,115.94826521,210.41,210.28,7.7]
[1759162134357,8.81147345,210.47,210.36,7.67]
[1759162134358,7.93,210.47,210.36,7.67]
[1759162134551,3.22940751,210.46,210.36,7.67]
[1759162134949,3.22940751,210.49,210.36,7.67]
[1759162135151,4.2736,210.46,210.39,7.67]
[1759162135349,3.22940751,210.49,210.39,7.67]
[1759162135749,319.4,210.52,210.39,7.67]
[1759162135956,3.23042679,210.51,210.39,7.67]
[1759162136156,319.4,210.52,210.44,7.67]
[1759162137160,319.4,210.52,210.44,11.9438]
[1759162137355,4.2721,210.53,210.44,11.9438]
[1759162137550,7.50203849,210.53,210.44,11.9438]
[1759162138057,319.38,210.64,210.47,7.67]
[1759162138058,117.2,210.57,210.47,7.67]
[1759162138552,117.2,210.57,210.47,21.7856407]
[1759162138758,117.2,210.57,210.47,7.67]
[1759162139358,7.93,210.59,210.48,7.67]
[1759162140167,7.93,210.59,210.5,7.67]
[1759162140468,4.2706,210.61,210.5,7.67]
[1759162140661,125.19,210.63,210.53,4.2721]
[1759162140870,125.19,210.63,210.54,7.67]
[1759162142365,125.19,210.63,210.55,4.2717]
[1759162142768,117.26,210.63,210.57,11.9413]
[1759162143066,7.93,210.68,210.57,7.67]
[1759162143664,12.1992,210.68,210.57,11.9412]
[1759162144058,7.93,210.68,210.58,7.67]
[1759162144466,7.93,210.68,210.59,4.2709]
[1759162144662,7.93,210.68,210.58,7.67]
[1759162146164,4.2697,210.65,210.58,7.67]
[1759162147071,12.1997,210.65,210.58,7.67]
[1759162147271,7.93,210.65,210.58,7.67]
[1759162148968,4.2699,210.64,210.52,11.9421]
[1759162149271,7.93,210.63,210.52,11.9421]
[1759162150174,4.2703,210.62,210.52,11.9421]
[1759162151171,4.2703,210.62,210.52,7.67]
[1759162151381,4.2707,210.6,210.52,7.67]
[1759162154674,12.3807,210.6,210.52,7.67]
[1759162155178,4.2711,210.58,210.52,7.67]
[1759162155485,74.5441,210.6,210.46,118.21612004]
[1759162155777,4.2718,210.55,210.48,7.9]
[1759162157571,8.11,210.57,210.48,7.9]
[1759162157770,8.11,210.57,210.44,7.9]
[1759162158174,4.2716,210.56,210.46,7.9]
[1759162158677,4.2719,210.55,210.46,7.9]
[1759162158973,8.11,210.57,210.48,7.9]
[1759162159173,12.3813,210.57,210.48,7.9]
[1759162159477,8.11,210.57,210.48,7.9]
[1759162159873,93.2206,210.58,210.4,27.25147345]
[1759162160078,74.5595,210.55,210.41,7.9]
[1759162160471,74.5595,210.55,210.43,7.9]
[1759162160472,4.272,210.54,210.43,7.9]
[1759162161678,4.272,210.54,210.45,7.9]
[1759162162579,4.272,210.54,210.47,4.2733]
[1759162163377,4.272,210.54,210.45,7.9]
[1759162163583,8.11,210.55,210.45,7.9]
[1759162164080,4.2722,210.53,210.45,12.1736]
[1759162164986,4.2724,210.52,210.45,12.1736]
[1759162165378,8.11,210.55,210.45,66.4792]
[1759162165586,5.2269327,210.64,210.45,66.4792]
[1759162165587,22.72,210.63,210.48,7.8]
[1759162165780,3.21182524,210.62,210.48,7.8]
[1759162166482,4.2705,210.61,210.48,7.8]
[1759162166780,7.4,210.63,210.51,66.4614]
[1759162166984,7.4,210.63,210.52,7.8]
[1759162167478,4.2695,210.66,210.57,12.0711]
[1759162167784,11.6695,210.66,210.57,12.0711]
[1759162167984,3.21629045,210.65,210.57,12.0711]
[1759162168185,7.48619045,210.65,210.57,12.0711]
[1759162168484,3.21629045,210.65,210.57,7.8]
[1759162169685,4.27,210.64,210.57,7.8]
[1759162172483,3.21629045,210.65,210.57,12.0712]
[1759162175489,3.21629045,210.65,210.58,4.2709]
[1759162175690,3.21629045,210.65,210.59,7.8]
[1759162175889,7.4,210.7,210.59,7.8]
[1759162176085,3.21629045,210.69,210.56,7.8]
[1759162176295,3.21629045,210.69,210.6,7.8]
[1759162176590,3.21629045,210.71,210.6,7.8]
[1759162177489,3.21629045,210.71,210.62,7.8]
[1759162177684,1.11651255,210.72,210.62,7.8]
[1759162177990,1.11651255,210.72,210.68,7.8]
[1759162178789,7.48429045,210.74,210.68,7.8]
[1759162178992,3.21629045,210.73,210.67,4.2691]
[1759162179389,3.21629045,210.75,210.67,12.0691]
[1759162179588,3.21629045,210.74,210.67,12.0691]
[1759162179892,3.21629045,210.73,210.68,4.2689]
[1759162180093,3.21629045,210.74,210.68,4.2689]
[1759162180291,3.21629045,210.73,210.69,7.8]
[1759162180493,3.21629045,210.77,210.69,7.8]
[1759162180791,3.21629045,210.76,210.69,7.8]
[1759162180993,3.21629045,210.75,210.69,7.8]
[1759162181185,3.21629045,210.74,210.68,4.2689]
[1759162181491,3.21629045,210.77,210.69,7.8]
[1759162181687,3.21629045,210.76,210.69,7.8]
[1759162181885,3.21629045,210.75,210.69,12.0687]
[1759162182082,3.21629045,210.76,210.7,7.8]
[1759162182291,3.21629045,210.75,210.69,4.2687]
[1759162182492,3.21629045,210.77,210.7,7.8]
[1759162182690,3.21629045,210.76,210.7,7.8]
[1759162182889,3.21629045,210.76,210.69,4.2687]